fUST/lending_fUST_20250219
["ID","MTS","AMOUNT","RATE_DAILY","PERIOD"]
[353642955,1739979043150,-292.65581936,0.00013698,2]
[353642956,1739979043159,-500.0,0.00013698,2]
[353642957,1739979043169,-500.0,0.00013698,2]
[353642958,1739979043179,-500.5175444,0.00013698,2]
[353642959,1739979043190,-500.0,0.00013698,2]
[353642960,1739979043199,-500.0,0.00013698,2]
[353642961,1739979043209,-500.0,0.00013698,2]
[353642962,1739979043219,-500.0,0.00013698,2]
[353642963,1739979043228,-500.0,0.00013698,2]
[353642964,1739979043238,-500.0,0.00013698,2]
[353642965,1739979043248,-500.0,0.00013698,2]
[353642966,1739979043258,-501.1629407,0.00013698,2]
[353642967,1739979043268,-500.0,0.00013698,2]
[353642968,1739979043279,-500.0,0.00013698,2]
[353642969,1739979043289,-500.0,0.00013698,2]
[353642970,1739979043299,-500.0,0.00013698,2]
[353642971,1739979043309,-500.0,0.00013698,2]
[353642972,1739979043318,-500.0,0.00013698,2]
[353642973,1739979043328,-500.0,0.00013698,2]
[353642974,1739979043337,-500.0,0.00013698,2]
[353642975,1739979043347,-500.0,0.00013698,2]
[353642976,1739979043356,-500.0,0.00013698,2]
[353642977,1739979043367,-500.0,0.00013698,2]
[353642978,1739979043378,-500.0,0.00013698,2]
[353642979,1739979043387,-500.0,0.00013698,2]
[353642980,1739979043397,-500.0,0.00013698,2]
[353642981,1739979043408,-298.08374081,0.00013698,2]
[353642982,1739979043420,-500.0,0.00013698,2]
[353642983,1739979043429,-500.0,0.00013698,2]
[353642984,1739979043439,-514.0181736,0.00013698,2]
[353642985,1739979043448,-501.40077392,0.00013698,2]
[353642986,1739979043458,-353.27511826,0.00013698,2]
[353642987,1739979043467,-500.0,0.00013698,2]
[353642988,1739979043477,-424.63677276,0.00013698,2]
[353642989,1739979043487,-500.0,0.00013698,2]
[353642990,1739979043497,-500.0,0.00013698,2]
[353642991,1739979043507,-249.2227122,0.00013698,2]
[353642992,1739979043516,-501.01706405,0.00013698,2]
[353642993,1739979043526,-501.69534111,0.00013698,2]
[353642994,1739979043536,-373.466443,0.00013698,2]
[353642995,1739979043546,-246.3632,0.00013698,2]
[353642996,1739979043665,-253.6368,0.00013698,2]
[353642997,1739979043675,-500.0,0.00013698,2]
[353642998,1739979043685,-500.0,0.00013698,2]
[353642999,1739979043695,-252.73549147,0.00013698,2]
[353643000,1739979043704,-500.0,0.00013698,2]
[353643001,1739979043715,-500.0,0.00013698,2]
[353643002,1739979043725,-500.0,0.00013698,2]
[353643003,1739979043735,-501.0711828,0.00013698,2]
[353643004,1739979043744,-500.45433858,0.00013698,2]
[353643005,1739979043753,-500.0,0.00013698,2]
[353643006,1739979043763,-286.73732833,0.00013698,2]
[353643007,1739979043772,-500.0,0.00013698,2]
[353643009,1739979043782,-500.0,0.00013698,2]
[353643010,1739979043792,-507.73828406,0.00013698,2]
[353643012,1739979043801,-964.05,0.00013698,2]
[353643014,1739979043811,-500.0,0.00013698,2]
[353643015,1739979043820,-500.0,0.00013698,2]
[353643016,1739979043830,-501.56183691,0.00013698,2]
[353643017,1739979043839,-500.0,0.00013698,2]
[353643018,1739979043848,-500.0,0.00013698,2]
[353643019,1739979043858,-509.57218545,0.00013698,2]
[353643021,1739979043867,-500.26342173,0.00013698,2]
[353643023,1739979043877,-500.0,0.00013698,2]
[353643027,1739979043886,-500.0,0.00013698,2]
[353643029,1739979043895,-500.0,0.00013698,2]
[353643032,1739979043904,-500.0,0.00013698,2]
[353643035,1739979043914,-500.0,0.00013698,2]
[353643037,1739979043923,-500.0,0.00013698,2]
[353643039,1739979043933,-500.0,0.00013698,2]
[353643041,1739979043942,-500.0,0.00013698,2]
[353643043,1739979043952,-500.0,0.00013698,2]
[353643045,1739979043962,-500.0,0.00013698,2]
[353643047,1739979043971,-626.98373473,0.00013698,2]
[353643049,1739979043981,-500.0,0.00013698,2]
[353643051,1739979043991,-500.0,0.00013698,2]
[353643053,1739979044001,-500.0,0.00013698,2]
[353643055,1739979044010,-501.39282742,0.00013698,2]
[353643057,1739979044020,-500.0,0.00013698,2]
[353643059,1739979044030,-500.0,0.00013698,2]
[353643061,1739979044040,-500.0,0.00013698,2]
[353643063,1739979044050,-500.70948518,0.00013698,2]
[353643065,1739979044059,-500.0,0.00013698,2]
[353643067,1739979044069,-500.0,0.00013698,2]
[353643069,1739979044078,-501.63670481,0.00013698,2]
[353643071,1739979044088,-500.0,0.00013698,2]
[353643073,1739979044099,-500.0,0.00013698,2]
[353643075,1739979044108,-500.0,0.00013698,2]
[353643077,1739979044118,-500.0,0.00013698,2]
[353643079,1739979044127,-500.0,0.00013698,2]
[353643081,1739979044136,-501.19445517,0.00013698,2]
[353643083,1739979044145,-500.0,0.00013698,2]
[353643085,1739979044155,-500.0,0.00013698,2]
[353643087,1739979044164,-502.51573851,0.00013698,2]
[353643089,1739979044173,-500.0,0.00013698,2]
[353643091,1739979044182,-500.0,0.00013698,2]
[353643093,1739979044193,-764.05,0.00013698,2]
[353643095,1739979044202,-500.0,0.00013698,2]
[353643097,1739979044212,-2540.34,0.00013698,2]
[353643099,1739979044221,-500.0,0.00013698,2]
[353643101,1739979044230,-500.0,0.00013698,2]
[353643103,1739979044240,-500.0,0.00013698,2]
[353643105,1739979044250,-500.0,0.00013698,2]
[353643107,1739979044259,-500.0,0.00013698,2]
[353643109,1739979044269,-500.0,0.00013698,2]
[353643111,1739979044279,-728.82,0.00013698,2]
[353643113,1739979044290,-558.9252319,0.00013698,2]
[353643114,1739979044299,-728.82,0.00013698,2]
[353643115,1739979044309,-728.82,0.00013698,2]
[353643116,1739979044319,-728.82,0.00013698,2]
[353643117,1739979044329,-500.0,0.00013698,2]
[353643118,1739979044338,-728.82,0.00013698,2]
[353643119,1739979044347,-728.82,0.00013698,2]
[353643120,1739979044357,-500.0,0.00013698,2]
[353643121,1739979044367,-500.0,0.00013698,2]
[353643122,1739979044376,-502.41848845,0.00013698,2]
[353643123,1739979044385,-500.0,0.00013698,2]
[353643124,1739979044394,-500.0,0.00013698,2]
[353643125,1739979044406,-500.0,0.00013698,2]
[353643126,1739979044417,-500.0,0.00013698,2]
[353643127,1739979044427,-728.82,0.00013698,2]
[353643128,1739979044436,-728.82,0.00013698,2]
[353643129,1739979044445,-728.82,0.00013698,2]
[353643130,1739979044457,-728.82,0.00013698,2]
[353643131,1739979044466,-728.82,0.00013698,2]
[353643132,1739979044477,-728.82,0.00013698,2]
[353643133,1739979044488,-500.0,0.00013698,2]
[353643134,1739979044498,-728.82,0.00013698,2]
[353643135,1739979044507,-728.82,0.00013698,2]
[353643136,1739979044516,-500.0,0.00013698,2]
[353643137,1739979044525,-728.82,0.00013698,2]
[353643138,1739979044536,-728.82,0.00013698,2]
[353643139,1739979044545,-728.82,0.00013698,2]
[353643140,1739979044553,-728.82,0.00013698,2]
[353643141,1739979044562,-728.82,0.00013698,2]
[353643142,1739979044572,-728.82,0.00013698,2]
[353643143,1739979044580,-728.82,0.00013698,2]
[353643144,1739979044589,-728.82,0.00013698,2]
[353643145,1739979044598,-728.82,0.00013698,2]
[353643146,1739979044607,-728.86,0.00013698,2]
[353643147,1739979044616,-500.0,0.00013698,2]
[353643148,1739979044626,-500.0,0.00013698,2]
[353643149,1739979044636,-500.0,0.00013698,2]
[353643150,1739979044728,-500.0,0.00013698,2]
[353643151,1739979044738,-500.0,0.00013698,2]
[353643152,1739979044747,-500.0,0.00013698,2]
[353643153,1739979044756,-524.56172416,0.00013698,2]
[353643154,1739979044766,-500.0,0.00013698,2]
[353643155,1739979044776,-500.0,0.00013698,2]
[353643156,1739979044786,-500.0,0.00013698,2]
[353643157,1739979044795,-500.0,0.00013698,2]
[353643158,1739979044804,-552.77,0.00013698,2]
[353643159,1739979044814,-332.33,0.00013698,2]
[353643160,1739979044824,-501.30073795,0.00013698,2]
[353643161,1739979044833,-500.0,0.00013698,2]
[353643162,1739979044842,-500.96943657,0.00013698,2]
[353643163,1739979044852,-500.0,0.00013698,2]
[353643164,1739979044861,-500.0,0.00013698,2]
[353643165,1739979044870,-500.0,0.00013698,2]
[353643166,1739979044880,-502.31336497,0.00013698,2]
[353643167,1739979044889,-500.0,0.00013698,2]
[353643168,1739979044898,-500.66585079,0.00013698,2]
[353643169,1739979044907,-500.0,0.00013698,2]
[353643170,1739979044917,-500.0,0.00013698,2]
[353643171,1739979044926,-535.7,0.00013698,2]
[353643172,1739979044935,-500.0,0.00013698,2]
[353643173,1739979044944,-500.0,0.00013698,2]
[353643174,1739979044954,-500.0,0.00013698,2]
[353643175,1739979044964,-500.0,0.00013698,2]
[353643176,1739979044974,-518.86497663,0.00013698,2]
[353643177,1739979044983,-500.0,0.00013698,2]
[353643178,1739979044993,-500.0,0.00013698,2]
[353643179,1739979045002,-500.0,0.00013698,2]
[353643180,1739979045012,-500.0,0.00013698,2]
[353643181,1739979045021,-630.85,0.00013698,2]
[353643182,1739979045030,-500.0,0.00013698,2]
[353643183,1739979045039,-501.46028111,0.00013698,2]
[353643184,1739979045049,-361.68,0.00013698,2]
[353643185,1739979045058,-500.0,0.00013698,2]
[353643186,1739979045068,-500.0,0.00013698,2]
[353643187,1739979045077,-500.0,0.00013698,2]
[353643188,1739979045088,-500.0,0.00013698,2]
[353643189,1739979045097,-500.0,0.00013698,2]
[353643190,1739979045107,-500.0,0.00013698,2]
[353643191,1739979045117,-500.70912827,0.00013698,2]
[353643192,1739979045127,-500.0,0.00013698,2]
[353643193,1739979045138,-500.0,0.00013698,2]
[353643194,1739979045147,-500.0,0.00013698,2]
[353643195,1739979045156,-501.20868546,0.00013698,2]
[353643196,1739979045166,-2150.34,0.00013698,2]
[353643197,1739979045176,-500.0,0.00013698,2]
[353643198,1739979045185,-500.0,0.00013698,2]
[353643199,1739979045195,-8482.81,0.00013698,2]
[353643200,1739979045204,-510.57326734,0.00013698,2]
[353643201,1739979045214,-500.0,0.00013698,2]
[353643202,1739979045224,-500.0,0.00013698,2]
[353643203,1739979045233,-501.32206366,0.00013698,2]
[353643204,1739979045243,-500.0,0.00013698,2]
[353643205,1739979045252,-500.0,0.00013698,2]
[353643206,1739979045262,-501.45752949,0.00013698,2]
[353643207,1739979045271,-500.0,0.00013698,2]
[353643208,1739979045282,-501.72588545,0.00013698,2]
[353643209,1739979045291,-500.0,0.00013698,2]
[353643210,1739979045301,-500.0,0.00013698,2]
[353643211,1739979045310,-540.31,0.00013698,2]
[353643212,1739979045320,-500.0,0.00013698,2]
[353643213,1739979045330,-500.0,0.00013698,2]
[353643214,1739979045340,-500.0,0.00013698,2]
[353643215,1739979045350,-500.0,0.00013698,2]
[353643216,1739979045360,-500.0,0.00013698,2]
[353643217,1739979045370,-500.0,0.00013698,2]
[353643218,1739979045379,-500.0,0.00013698,2]
[353643219,1739979045389,-1293.58,0.00013698,2]
[353643220,1739979045398,-500.87568404,0.00013698,2]
[353643221,1739979045409,-502.39317691,0.00013698,2]
[353643222,1739979045420,-500.0,0.00013698,2]
[353643223,1739979045429,-500.0,0.00013698,2]
[353643224,1739979045439,-3337.23,0.00013698,2]
[353643225,1739979045448,-500.0,0.00013698,2]
[353643226,1739979045459,-503.6563053,0.00013698,2]
[353643227,1739979045474,-500.0,0.00013698,2]
[353643228,1739979045484,-500.62041127,0.00013698,2]
[353643229,1739979045493,-500.0,0.00013698,2]
[353643230,1739979045503,-500.0,0.00013698,2]
[353643231,1739979045513,-241.28436004,0.00013698,2]
[353643232,1739979045523,-500.0,0.00013698,2]
[353643233,1739979045532,-913.11,0.00013698,2]
[353643234,1739979045542,-500.0,0.00013698,2]
[353643235,1739979045551,-500.0,0.00013698,2]
[353643236,1739979045561,-502.01910377,0.00013698,2]
[353643237,1739979045571,-500.0,0.00013698,2]
[353643238,1739979045580,-500.0,0.00013698,2]
[353643239,1739979045590,-248.62349108,0.00013698,2]
[353643240,1739979045599,-339.674787,0.00013699,2]
[353643241,1739979045609,-169.359874,0.00013699,2]
[353643242,1739979045619,-500.0,0.00013699,2]
[353643243,1739979045628,-500.0,0.00013699,2]
[353643244,1739979045638,-345.42438499,0.00013699,2]
[353643245,1739979045647,-500.0,0.00013699,2]
[353643246,1739979045657,-500.0,0.00013699,2]
[353643247,1739979045667,-500.0,0.00013699,2]
[353643249,1739979045676,-500.0,0.00013699,2]
[353643250,1739979045685,-331.98758965,0.00013699,2]
[353643251,1739979045694,-522.21733561,0.00013699,2]
[353643252,1739979045703,-500.0,0.00013699,2]
[353643253,1739979045713,-500.0,0.00013699,2]
[353643254,1739979045722,-500.0,0.00013699,2]
[353643255,1739979045732,-207.82153303,0.00013699,2]
[353643256,1739979045741,-500.0,0.00013699,2]
[353643257,1739979045751,-500.0,0.00013699,2]
[353643258,1739979045760,-500.0,0.00013699,2]
[353643259,1739979045769,-500.0,0.00013699,2]
[353643260,1739979045778,-500.0,0.00013699,2]
[353643261,1739979045789,-500.0,0.00013699,2]
[353643262,1739979045799,-500.0,0.00013699,2]
[353643263,1739979045809,-500.0,0.00013699,2]
[353643265,1739979045819,-500.0,0.00013699,2]
[353643267,1739979045828,-500.0,0.00013699,2]
[353643268,1739979045838,-500.0,0.00013699,2]
[353643269,1739979045847,-500.0,0.00013699,2]
[353643270,1739979045856,-623.27224616,0.00013699,2]
[353643271,1739979045866,-500.0,0.00013699,2]
[353643272,1739979045876,-500.0,0.00013699,2]
[353643273,1739979045886,-500.0,0.00013699,2]
[353643274,1739979045895,-500.0,0.00013699,2]
[353643275,1739979045905,-500.0,0.00013699,2]
[353643276,1739979045915,-500.0,0.00013699,2]
[353643277,1739979045925,-500.0,0.00013699,2]
[353643278,1739979045934,-500.0,0.00013699,2]
[353643279,1739979045943,-151.0,0.000137,2]
[353643280,1739979045954,-462.87310013,0.0001378,2]
[353643281,1739979045963,-277.3124148,0.0001378,2]
[353643282,1739979045974,-598.50379879,0.0001378,2]
[353643283,1739979045983,-508.58115491,0.0001378,2]
[353643284,1739979045992,-500.0,0.0001378,2]
[353643285,1739979046001,-500.0,0.0001378,2]
[353643286,1739979046011,-500.0,0.0001378,2]
[353643287,1739979046020,-500.0,0.0001378,2]
[353643288,1739979046030,-500.0,0.0001378,2]
[353643289,1739979046040,-502.75974146,0.0001378,2]
[353643291,1739979046049,-500.0,0.0001378,2]
[353643293,1739979046059,-500.0,0.0001378,2]
[353643295,1739979046068,-502.97796487,0.0001378,2]
[353643297,1739979046077,-500.0,0.0001378,2]
[353643298,1739979046086,-500.0,0.0001378,2]
[353643300,1739979046095,-500.0,0.0001378,2]
[353643301,1739979046105,-500.0,0.0001378,2]
[353643302,1739979046114,-500.0,0.0001378,2]
[353643303,1739979046124,-500.0,0.0001378,2]
[353643304,1739979046134,-500.0,0.0001378,2]
[353643305,1739979046144,-500.0,0.0001378,2]
[353643306,1739979046155,-289.23736409,0.0001378,2]
[353643307,1739979046169,-501.06673838,0.0001378,2]
[353643308,1739979046179,-500.0,0.0001378,2]
[353643309,1739979046189,-503.23915441,0.0001378,2]
[353643310,1739979046198,-500.0,0.0001378,2]
[353643311,1739979046209,-500.0,0.0001378,2]
[353643312,1739979046221,-500.0,0.0001378,2]
[353643313,1739979046232,-500.0,0.0001378,2]
[353643314,1739979046242,-500.0,0.0001378,2]
[353643315,1739979046252,-501.36503709,0.0001378,2]
[353643316,1739979046263,-500.0,0.0001378,2]
[353643317,1739979046272,-501.87008254,0.0001378,2]
[353643318,1739979046282,-500.0,0.0001378,2]
[353643319,1739979046292,-500.0,0.0001378,2]
[353643320,1739979046302,-500.0,0.0001378,2]
[353643321,1739979046312,-500.0,0.0001378,2]
[353643323,1739979046321,-500.0,0.0001378,2]
[353643324,1739979046331,-501.19174403,0.0001378,2]
[353643325,1739979046341,-315.84651705,0.0001378,2]
[353643326,1739979046351,-210.51830066,0.0001378,2]
[353643327,1739979046432,-500.0,0.0001378,2]
[353643328,1739979046442,-501.79389425,0.0001378,2]
[353643329,1739979046452,-500.0,0.0001378,2]
[353643330,1739979046461,-500.0,0.0001378,2]
[353643331,1739979046471,-500.0,0.0001378,2]
[353643332,1739979046481,-500.0,0.0001378,2]
[353643333,1739979046492,-500.0,0.0001378,2]
[353643334,1739979046502,-500.0,0.0001378,2]
[353643335,1739979046512,-500.0,0.0001378,2]
[353643336,1739979046521,-500.0,0.0001378,2]
[353643337,1739979046531,-504.39506712,0.0001378,2]
[353643338,1739979046541,-500.0,0.0001378,2]
[353643339,1739979046551,-500.0,0.0001378,2]
[353643340,1739979046560,-503.36313524,0.0001378,2]
[353643341,1739979046569,-500.0,0.0001378,2]
[353643342,1739979046580,-502.18088427,0.0001378,2]
[353643343,1739979046590,-500.0,0.0001378,2]
[353643344,1739979046599,-500.0,0.0001378,2]
[353643345,1739979046608,-500.0,0.0001378,2]
[353643346,1739979046618,-500.0,0.0001378,2]
[353643347,1739979046628,-500.0,0.0001378,2]
[353643348,1739979046638,-500.0,0.0001378,2]
[353643349,1739979046647,-500.0,0.0001378,2]
[353643350,1739979046656,-500.0,0.0001378,2]
[353643351,1739979046666,-500.0,0.0001378,2]
[353643352,1739979046675,-500.0,0.0001378,2]
[353643353,1739979046685,-500.0,0.0001378,2]
[353643354,1739979046695,-500.0,0.0001378,2]
[353643355,1739979046705,-500.0,0.0001378,2]
[353643356,1739979046715,-500.0,0.0001378,2]
[353643357,1739979046724,-500.0,0.0001378,2]
[353643358,1739979046733,-615.1234645,0.0001378,2]
[353643359,1739979046743,-500.0,0.0001378,2]
[353643360,1739979046753,-500.0,0.0001378,2]
[353643361,1739979046763,-500.0,0.0001378,2]
[353643362,1739979046772,-964.05,0.0001378,2]
[353643363,1739979046781,-500.0,0.0001378,2]
[353643364,1739979046791,-500.0,0.0001378,2]
[353643365,1739979046801,-500.0,0.0001378,2]
[353643366,1739979046811,-501.11275712,0.0001378,2]
[353643367,1739979046820,-500.0,0.0001378,2]
[353643368,1739979046830,-500.0,0.0001378,2]
[353643369,1739979046840,-500.0,0.0001378,2]
[353643370,1739979046850,-500.0,0.0001378,2]
[353643371,1739979046859,-500.0,0.0001378,2]
[353643372,1739979046869,-500.0,0.0001378,2]
[353643373,1739979046879,-500.0,0.0001378,2]
[353643374,1739979046888,-500.0,0.0001378,2]
[353643375,1739979046898,-500.0,0.0001378,2]
[353643376,1739979046907,-500.0,0.0001378,2]
[353643377,1739979046917,-500.0,0.0001378,2]
[353643378,1739979046927,-500.0,0.0001378,2]
[353643379,1739979046937,-500.0,0.0001378,2]
[353643380,1739979046947,-500.0,0.0001378,2]
[353643381,1739979046956,-500.0,0.0001378,2]
[353643382,1739979046966,-764.05,0.0001378,2]
[353643383,1739979046975,-381.17,0.0001378,2]
[353643384,1739979046985,-2540.34,0.0001378,2]
[353643385,1739979046995,-500.0,0.0001378,2]
[353643386,1739979047004,-500.0,0.0001378,2]
[353643387,1739979047015,-500.0,0.0001378,2]
[353643388,1739979047024,-500.0,0.0001378,2]
[353643389,1739979047035,-617.43,0.0001378,2]
[353643390,1739979047044,-500.0,0.0001378,2]
[353643391,1739979047054,-500.0,0.0001378,2]
[353643392,1739979047063,-169.28,0.0001378,2]
[353643393,1739979047073,-500.0,0.0001378,2]
[353643394,1739979047083,-535.7,0.0001378,2]
[353643395,1739979047092,-500.0,0.0001378,2]
[353643396,1739979047102,-500.0,0.0001378,2]
[353643397,1739979047111,-500.0,0.0001378,2]
[353643398,1739979047120,-500.0,0.0001378,2]
[353643399,1739979047130,-500.0,0.0001378,2]
[353643400,1739979047139,-630.85,0.0001378,2]
[353643401,1739979047149,-500.0,0.0001378,2]
[353643402,1739979047159,-500.0,0.0001378,2]
[353643403,1739979047169,-500.0,0.0001378,2]
[353643404,1739979047179,-500.0,0.0001378,2]
[353643405,1739979047192,-500.0,0.0001378,2]
[353643406,1739979047208,-514.4,0.0001378,2]
[353643407,1739979047224,-503.30253068,0.0001378,2]
[353643408,1739979047237,-150.72,0.0001378,2]
[353643409,1739979047252,-500.0,0.0001378,2]
[353643410,1739979047266,-2150.34,0.0001378,2]
[353643411,1739979047281,-500.0,0.0001378,2]
[353643412,1739979047296,-8482.81,0.0001378,2]
[353643413,1739979047311,-500.0,0.0001378,2]
[353643414,1739979047327,-500.0,0.0001378,2]
[353643415,1739979047340,-540.31,0.0001378,2]
[353643416,1739979047354,-500.0,0.0001378,2]
[353643417,1739979047370,-500.0,0.0001378,2]
[353643418,1739979047384,-500.0,0.0001378,2]
[353643419,1739979047396,-352.15602271,0.0001378,2]
[353643420,1739979047409,-1293.58,0.0001378,2]
[353643421,1739979047422,-3337.23,0.0001378,2]
[353643422,1739979047437,-500.0,0.0001378,2]
[353643423,1739979047452,-500.0,0.0001378,2]
[353643424,1739979047465,-500.0,0.0001378,2]
[353643425,1739979047481,-913.11,0.0001378,2]
[353643426,1739979047496,-398.54900794,0.0001378,2]
[353643427,1739979047508,-500.0,0.0001378,2]
[353643428,1739979047520,-181.69423949,0.0001378,2]
[353643429,1739979047533,-151.0,0.000138,2]
[353643430,1739979047550,-151.0,0.000138,2]
[353643431,1739979047564,-502.23393243,0.00013863,2]
[353643432,1739979047576,-500.0,0.00013863,2]
[353643433,1739979047589,-500.0,0.00013863,2]
[353643434,1739979047603,-500.0,0.00013863,2]
[353643435,1739979047614,-503.13601107,0.00013863,2]
[353643436,1739979047625,-501.581334,0.00013863,2]
[353643437,1739979047638,-500.83208442,0.00013863,2]
[353643438,1739979047650,-500.0,0.00013863,2]
[353643439,1739979047663,-500.0,0.00013863,2]
[353643440,1739979047675,-500.0,0.00013863,2]
[353643441,1739979047687,-630.99825166,0.00013863,2]
[353643442,1739979047700,-500.0,0.00013863,2]
[353643443,1739979047712,-500.0,0.00013863,2]
[353643444,1739979047724,-500.0,0.00013863,2]
[353643445,1739979047737,-500.0,0.00013863,2]
[353643446,1739979047749,-500.0,0.00013863,2]
[353643447,1739979047761,-500.0,0.00013863,2]
[353643448,1739979047773,-500.0,0.00013863,2]
[353643449,1739979047785,-500.0,0.00013863,2]
[353643450,1739979047797,-500.0,0.00013863,2]
[353643451,1739979047810,-964.05,0.00013863,2]
[353643452,1739979047824,-500.0,0.00013863,2]
[353643453,1739979047835,-500.0,0.00013863,2]
[353643454,1739979047848,-500.0,0.00013863,2]
[353643455,1739979047861,-500.0,0.00013863,2]
[353643456,1739979047872,-500.0,0.00013863,2]
[353643457,1739979047885,-553.72,0.00013863,2]
[353643458,1739979047897,-500.0,0.00013863,2]
[353643459,1739979047909,-500.0,0.00013863,2]
[353643460,1739979047921,-500.0,0.00013863,2]
[353643461,1739979047933,-500.0,0.00013863,2]
[353643462,1739979047945,-764.05,0.00013863,2]
[353643463,1739979047958,-2540.34,0.00013863,2]
[353643464,1739979047969,-500.0,0.00013863,2]
[353643465,1739979047981,-500.0,0.00013863,2]
[353643466,1739979047993,-500.0,0.00013863,2]
[353643467,1739979048006,-500.0,0.00013863,2]
[353643468,1739979048017,-500.0,0.00013863,2]
[353643469,1739979048026,-482.24,0.00013863,2]
[353643470,1739979048036,-535.7,0.00013863,2]
[353643471,1739979048046,-151.36970288,0.00013863,2]
[353643472,1739979048055,-536.16,0.00013863,2]
[353643473,1739979048065,-500.0,0.00013863,2]
[353643474,1739979048074,-630.85,0.00013863,2]
[353643475,1739979048084,-500.0,0.00013863,2]
[353643476,1739979048094,-500.0,0.00013863,2]
[353643477,1739979048104,-300.26031628,0.00013863,2]
[353643478,1739979048114,-500.0,0.00013863,2]
[353643479,1739979048124,-2150.34,0.00013863,2]
[353643480,1739979048135,-500.0,0.00013863,2]
[353643481,1739979048291,-8482.81,0.00013863,2]
[353643482,1739979048314,-500.0,0.00013863,2]
[353643483,1739979048325,-540.31,0.00013863,2]
[353643484,1739979048336,-157.64159546,0.00013863,2]
[353643485,1739979048347,-500.0,0.00013863,2]
[353643486,1739979048357,-1293.58,0.00013863,2]
[353643487,1739979048367,-3337.23,0.00013863,2]
[353643488,1739979048377,-500.0,0.00013863,2]
[353643489,1739979048388,-500.0,0.00013863,2]
[353643490,1739979048398,-913.11,0.00013863,2]
[353643491,1739979048408,-500.0,0.00013863,2]
[353643492,1739979048421,-507.48694895,0.00013945,2]
[353643493,1739979048431,-500.0,0.00013945,2]
[353643494,1739979048440,-457.19,0.00013945,2]
[353643495,1739979048449,-500.0,0.00013945,2]
[353643496,1739979048462,-500.0,0.00013945,2]
[353643497,1739979048472,-500.0,0.00013945,2]
[353643498,1739979048481,-500.0,0.00013945,2]
[353643499,1739979048492,-500.0,0.00013945,2]
[353643500,1739979048502,-194.57611937,0.00013945,2]
[353643501,1739979048512,-345.97,0.00013945,2]
[353643502,1739979048521,-500.0,0.00013945,2]
[353643503,1739979048531,-542.76276329,0.00013945,2]
[353643504,1739979048543,-964.05,0.00013945,2]
[353643505,1739979048553,-385.91,0.00013945,2]
[353643506,1739979048562,-500.0,0.00013945,2]
[353643507,1739979048572,-500.0,0.00013945,2]
[353643508,1739979048583,-500.0,0.00013945,2]
[353643509,1739979048593,-500.0,0.00013945,2]
[353643510,1739979048603,-282.82,0.00013945,2]
[353643511,1739979048614,-500.0,0.00013945,2]
[353643512,1739979048623,-500.0,0.00013945,2]
[353643513,1739979048633,-463.13884181,0.00013945,2]
[353643514,1739979048643,-764.05,0.00013945,2]
[353643515,1739979048652,-2540.34,0.00013945,2]